{"text_format":"1","workbook":"xlsx","n_sheets":3,"sheets":["Lista de inventario de almacén","Lista de selector de inventario","Búsqueda de clase"],"not_rendered":{"charts":0,"images":0,"macros":1,"external_links":0,"defined_names":8,"comments":0,"pivot_tables":0},"unopened":[],"bounds":{"document_bytes":16777216,"sheet_cells":100000,"rows_first":2000,"rows_last":500,"rows_between":2000,"halvings":0,"cell_chars":16384,"cell_head_chars":4096},"cells_cut":0,"cells_raw":0,"read":"whole","date_system":"1900"}

{"sheet":"Lista de inventario de almacén","index":0,"n_rows":15,"n_cols":11,"rows_kept":15,"cut":false,"hidden":false,"merged":[]}
[null,"LISTA DE INVENTARIO DE ALMACÉN"]
[null,"VALOR DEL INVENTARIO TOTAL:","ELEMENTOS DE INVENTARIO:","RECUENTO DE CLASE:","LISTA DE SELECTOR DE INVENTARIO","BÚSQUEDA DE CLASE"]
[null,{"$f":"SUM(ListaDeInventario[VALOR DEL INVENTARIO])","v":4649},{"$f":"COUNTA(ListaDeInventario[DESCRIPCIÓN])","v":11},{"$f":"SUMPRODUCT((1/COUNTIF(ListaDeInventario[N.º DE CLASE],ListaDeInventario[N.º DE CLASE]&\"\")))","v":6}]
[null,"SKU","DESCRIPCIÓN","N.º DE CLASE","UBICACIÓN","UNIDAD","CANT.","CANT PARA VOLVER A PEDIR","COSTO","VALOR DEL INVENTARIO","VOLVER A PEDIR"]
[null,"SP7875","Artículo 1","T345",{"$f":"IFERROR(VLOOKUP(ListaDeInventario[[#This Row],[N.º DE CLASE]],BúsquedaDeClase[],3,FALSE),\"\")","v":"Fila 2, ranura 1"},"Cada",20,10,30,{"$f":"ListaDeInventario[[#This Row],[CANT.]]*ListaDeInventario[[#This Row],[COSTO]]","v":600},{"$f":"IFERROR(IF(ListaDeInventario[[#This Row],[CANT.]]<=ListaDeInventario[[#This Row],[CANT PARA VOLVER A PEDIR]],1,0),0)","v":0}]
[null,"TR87680","Elemento 2","T345",{"$f":"IFERROR(VLOOKUP(ListaDeInventario[[#This Row],[N.º DE CLASE]],BúsquedaDeClase[],3,FALSE),\"\")","v":"Fila 2, ranura 1"},"Cada",30,15,40,{"$f":"ListaDeInventario[[#This Row],[CANT.]]*ListaDeInventario[[#This Row],[COSTO]]","v":1200},{"$f":"IFERROR(IF(ListaDeInventario[[#This Row],[CANT.]]<=ListaDeInventario[[#This Row],[CANT PARA VOLVER A PEDIR]],1,0),0)","v":0}]
[null,"MK676554","Elemento 3","T5789",{"$f":"IFERROR(VLOOKUP(ListaDeInventario[[#This Row],[N.º DE CLASE]],BúsquedaDeClase[],3,FALSE),\"\")","v":"Fila 1, ranura 1"},"Cada",10,5,5,{"$f":"ListaDeInventario[[#This Row],[CANT.]]*ListaDeInventario[[#This Row],[COSTO]]","v":50},{"$f":"IFERROR(IF(ListaDeInventario[[#This Row],[CANT.]]<=ListaDeInventario[[#This Row],[CANT PARA VOLVER A PEDIR]],1,0),0)","v":0}]
[null,"YE98767","Elemento 4","T9876",{"$f":"IFERROR(VLOOKUP(ListaDeInventario[[#This Row],[N.º DE CLASE]],BúsquedaDeClase[],3,FALSE),\"\")","v":"Fila 3, ranura 2"},"Caja (10 ct)",40,10,15,{"$f":"ListaDeInventario[[#This Row],[CANT.]]*ListaDeInventario[[#This Row],[COSTO]]","v":600},{"$f":"IFERROR(IF(ListaDeInventario[[#This Row],[CANT.]]<=ListaDeInventario[[#This Row],[CANT PARA VOLVER A PEDIR]],1,0),0)","v":0}]
[null,"XR23423","Elemento 5","T098",{"$f":"IFERROR(VLOOKUP(ListaDeInventario[[#This Row],[N.º DE CLASE]],BúsquedaDeClase[],3,FALSE),\"\")","v":"Fila 3, ranura 1"},"Cada",12,10,26,{"$f":"ListaDeInventario[[#This Row],[CANT.]]*ListaDeInventario[[#This Row],[COSTO]]","v":312},{"$f":"IFERROR(IF(ListaDeInventario[[#This Row],[CANT.]]<=ListaDeInventario[[#This Row],[CANT PARA VOLVER A PEDIR]],1,0),0)","v":0}]
[null,"PW98762","Elemento 6","T345",{"$f":"IFERROR(VLOOKUP(ListaDeInventario[[#This Row],[N.º DE CLASE]],BúsquedaDeClase[],3,FALSE),\"\")","v":"Fila 2, ranura 1"},"Cada",7,10,50,{"$f":"ListaDeInventario[[#This Row],[CANT.]]*ListaDeInventario[[#This Row],[COSTO]]","v":350},{"$f":"IFERROR(IF(ListaDeInventario[[#This Row],[CANT.]]<=ListaDeInventario[[#This Row],[CANT PARA VOLVER A PEDIR]],1,0),0)","v":1}]
[null,"BM87684","Elemento 7","T349",{"$f":"IFERROR(VLOOKUP(ListaDeInventario[[#This Row],[N.º DE CLASE]],BúsquedaDeClase[],3,FALSE),\"\")","v":"Fila 1, ranura 2"},"Cada",10,5,10,{"$f":"ListaDeInventario[[#This Row],[CANT.]]*ListaDeInventario[[#This Row],[COSTO]]","v":100},{"$f":"IFERROR(IF(ListaDeInventario[[#This Row],[CANT.]]<=ListaDeInventario[[#This Row],[CANT PARA VOLVER A PEDIR]],1,0),0)","v":0}]
[null,"BH67655","Elemento 8","T5789",{"$f":"IFERROR(VLOOKUP(ListaDeInventario[[#This Row],[N.º DE CLASE]],BúsquedaDeClase[],3,FALSE),\"\")","v":"Fila 1, ranura 1"},"Cada",19,10,3,{"$f":"ListaDeInventario[[#This Row],[CANT.]]*ListaDeInventario[[#This Row],[COSTO]]","v":57},{"$f":"IFERROR(IF(ListaDeInventario[[#This Row],[CANT.]]<=ListaDeInventario[[#This Row],[CANT PARA VOLVER A PEDIR]],1,0),0)","v":0}]
[null,"WT98768","Elemento 9","T9875",{"$f":"IFERROR(VLOOKUP(ListaDeInventario[[#This Row],[N.º DE CLASE]],BúsquedaDeClase[],3,FALSE),\"\")","v":"Fila 2, ranura 2"},"Paquete (5 ct)",20,30,14,{"$f":"ListaDeInventario[[#This Row],[CANT.]]*ListaDeInventario[[#This Row],[COSTO]]","v":280},{"$f":"IFERROR(IF(ListaDeInventario[[#This Row],[CANT.]]<=ListaDeInventario[[#This Row],[CANT PARA VOLVER A PEDIR]],1,0),0)","v":1}]
[null,"TS3456","Elemento 10","T349",{"$f":"IFERROR(VLOOKUP(ListaDeInventario[[#This Row],[N.º DE CLASE]],BúsquedaDeClase[],3,FALSE),\"\")","v":"Fila 1, ranura 2"},"Cada",15,8,60,{"$f":"ListaDeInventario[[#This Row],[CANT.]]*ListaDeInventario[[#This Row],[COSTO]]","v":900},{"$f":"IFERROR(IF(ListaDeInventario[[#This Row],[CANT.]]<=ListaDeInventario[[#This Row],[CANT PARA VOLVER A PEDIR]],1,0),0)","v":0}]
[null,"WDG123","Elemento 11","T349",{"$f":"IFERROR(VLOOKUP(ListaDeInventario[[#This Row],[N.º DE CLASE]],BúsquedaDeClase[],3,FALSE),\"\")","v":"Fila 1, ranura 2"},"Cada",25,15,8,{"$f":"ListaDeInventario[[#This Row],[CANT.]]*ListaDeInventario[[#This Row],[COSTO]]","v":200},{"$f":"IFERROR(IF(ListaDeInventario[[#This Row],[CANT.]]<=ListaDeInventario[[#This Row],[CANT PARA VOLVER A PEDIR]],1,0),0)","v":0}]

{"sheet":"Lista de selector de inventario","index":1,"n_rows":9,"n_cols":9,"rows_kept":9,"cut":false,"hidden":false,"merged":[]}
[null,"LISTA DE SELECTOR DE INVENTARIO"]
[null,null,"LISTA DE INVENTARIO"]
[]
[null,"N.º DE PEDIDO","SKU","CANT SELECCIONADA","CANT DISPONIBLE","DESCRIPCIÓN DEL ELEMENTO","UNIDAD","N.º DE CLASE","UBICACIÓN"]
[null,"TP001-1","SP7875",3,{"$f":"IFERROR(VLOOKUP(ListaDeSelectorDeInventario[SKU],ListaDeInventario[],6,FALSE),\"\")","v":20},{"$f":"IFERROR(VLOOKUP(ListaDeSelectorDeInventario[SKU],ListaDeInventario[],2,FALSE),\"\")","v":"Artículo 1"},{"$f":"IFERROR(VLOOKUP(ListaDeSelectorDeInventario[SKU],ListaDeInventario[],5,FALSE),\"\")","v":"Cada"},{"$f":"IFERROR(VLOOKUP(ListaDeSelectorDeInventario[SKU],ListaDeInventario[],3,FALSE),\"\")","v":"T345"},{"$f":"IFERROR(VLOOKUP(ListaDeSelectorDeInventario[SKU],ListaDeInventario[],4,FALSE),\"\")","v":"Fila 2, ranura 1"}]
[null,"TP001-1","YE98767",1,{"$f":"IFERROR(VLOOKUP(ListaDeSelectorDeInventario[SKU],ListaDeInventario[],6,FALSE),\"\")","v":40},{"$f":"IFERROR(VLOOKUP(ListaDeSelectorDeInventario[SKU],ListaDeInventario[],2,FALSE),\"\")","v":"Elemento 4"},{"$f":"IFERROR(VLOOKUP(ListaDeSelectorDeInventario[SKU],ListaDeInventario[],5,FALSE),\"\")","v":"Caja (10 ct)"},{"$f":"IFERROR(VLOOKUP(ListaDeSelectorDeInventario[SKU],ListaDeInventario[],3,FALSE),\"\")","v":"T9876"},{"$f":"IFERROR(VLOOKUP(ListaDeSelectorDeInventario[SKU],ListaDeInventario[],4,FALSE),\"\")","v":"Fila 3, ranura 2"}]
[null,"TP001-1","BM87684",2,{"$f":"IFERROR(VLOOKUP(ListaDeSelectorDeInventario[SKU],ListaDeInventario[],6,FALSE),\"\")","v":10},{"$f":"IFERROR(VLOOKUP(ListaDeSelectorDeInventario[SKU],ListaDeInventario[],2,FALSE),\"\")","v":"Elemento 7"},{"$f":"IFERROR(VLOOKUP(ListaDeSelectorDeInventario[SKU],ListaDeInventario[],5,FALSE),\"\")","v":"Cada"},{"$f":"IFERROR(VLOOKUP(ListaDeSelectorDeInventario[SKU],ListaDeInventario[],3,FALSE),\"\")","v":"T349"},{"$f":"IFERROR(VLOOKUP(ListaDeSelectorDeInventario[SKU],ListaDeInventario[],4,FALSE),\"\")","v":"Fila 1, ranura 2"}]
[null,"TP001-1","TS3456",6,{"$f":"IFERROR(VLOOKUP(ListaDeSelectorDeInventario[SKU],ListaDeInventario[],6,FALSE),\"\")","v":15},{"$f":"IFERROR(VLOOKUP(ListaDeSelectorDeInventario[SKU],ListaDeInventario[],2,FALSE),\"\")","v":"Elemento 10"},{"$f":"IFERROR(VLOOKUP(ListaDeSelectorDeInventario[SKU],ListaDeInventario[],5,FALSE),\"\")","v":"Cada"},{"$f":"IFERROR(VLOOKUP(ListaDeSelectorDeInventario[SKU],ListaDeInventario[],3,FALSE),\"\")","v":"T349"},{"$f":"IFERROR(VLOOKUP(ListaDeSelectorDeInventario[SKU],ListaDeInventario[],4,FALSE),\"\")","v":"Fila 1, ranura 2"}]
[null,"TP001-1","MK676554",3,{"$f":"IFERROR(VLOOKUP(ListaDeSelectorDeInventario[SKU],ListaDeInventario[],6,FALSE),\"\")","v":10},{"$f":"IFERROR(VLOOKUP(ListaDeSelectorDeInventario[SKU],ListaDeInventario[],2,FALSE),\"\")","v":"Elemento 3"},{"$f":"IFERROR(VLOOKUP(ListaDeSelectorDeInventario[SKU],ListaDeInventario[],5,FALSE),\"\")","v":"Cada"},{"$f":"IFERROR(VLOOKUP(ListaDeSelectorDeInventario[SKU],ListaDeInventario[],3,FALSE),\"\")","v":"T5789"},{"$f":"IFERROR(VLOOKUP(ListaDeSelectorDeInventario[SKU],ListaDeInventario[],4,FALSE),\"\")","v":"Fila 1, ranura 1"}]

{"sheet":"Búsqueda de clase","index":2,"n_rows":11,"n_cols":7,"rows_kept":11,"cut":false,"hidden":false,"merged":[]}
[null,"BÚSQUEDA DE CLASE"]
[null,"LISTA DE INVENTARIO"]
[]
[null,"N.º DE CLASE","DESCRIPCIÓN","UBICACIÓN","ANCHO","ALTO","LONGITUD"]
[null,"T345","Clase de gran tamaño","Fila 2, ranura 1",50,10,10]
[null,"T5789","Clase pequeña","Fila 1, ranura 1",25,5,5]
[null,"T9876","Clase de gran tamaño","Fila 3, ranura 2",50,10,10]
[null,"T098","Clase mediana","Fila 3, ranura 1",30,7,10]
[null,"T349","Clase pequeña","Fila 1, ranura 2",25,5,5]
[null,"T5789","Clase de gran tamaño","Fila 4, ranura 5",50,10,10]
[null,"T9875","Clase de gran tamaño","Fila 2, ranura 2",50,10,10]